[Event "*** Titled Tuesday Blitz"]
[Site "Chess.com"]
[Date "2020.05.12"]
[Round "1"]
[White "Konovalova_Vera"]
[Black "dragos420"]
[Result "0-1"]
[WhiteElo "2109"]
[BlackElo "2508"]
[TimeControl "180+1"]
[EndTime "10:08:25 PDT"]
[Termination "dragos420 won on time"]

1. d4 {[%clk 0:02:56.8]} 1... Nf6 {[%clk 0:02:59.9]} 2. Nf3 {[%clk 0:02:56.8]}
2... e6 {[%clk 0:03:00.8]} 3. e3 {[%clk 0:02:57.2]} 3... Be7 {[%clk 0:03:01.3]}
4. Bd3 {[%clk 0:02:57.5]} 4... O-O {[%clk 0:03:02]} 5. b3 {[%clk 0:02:58]} 5...
d5 {[%clk 0:03:02.4]} 6. Bb2 {[%clk 0:02:58.2]} 6... c5 {[%clk 0:03:02.6]} 7.
Nbd2 {[%clk 0:02:58.5]} 7... Nc6 {[%clk 0:03:02.7]} 8. a3 {[%clk 0:02:57.5]}
8... b6 {[%clk 0:03:03.1]} 9. O-O {[%clk 0:02:57.9]} 9... Bb7 {[%clk 0:03:03.2]}
10. Ne5 {[%clk 0:02:58.4]} 10... Re8 {[%clk 0:03:03.2]} 11. f4 {[%clk
0:02:54.4]} 11... Bf8 {[%clk 0:03:01.4]} 12. Qf3 {[%clk 0:02:48.5]} 12... a6
{[%clk 0:02:50.5]} 13. Qh3 {[%clk 0:02:33.5]} 13... Ne7 {[%clk 0:02:48]} 14. f5
{[%clk 0:02:14.1]} 14... Nxf5 {[%clk 0:02:43.4]} 15. Bxf5 {[%clk 0:02:13.5]}
15... exf5 {[%clk 0:02:44.3]} 16. Qxf5 {[%clk 0:02:10.2]} 16... Bc8 {[%clk
0:02:37.1]} 17. Qg5 {[%clk 0:01:54.2]} 17... h6 {[%clk 0:02:24]} 18. Qh4 {[%clk
0:01:49.8]} 18... Qd6 {[%clk 0:02:13.9]} 19. Rad1 {[%clk 0:01:26.2]} 19... Ra7
{[%clk 0:01:47.2]} 20. e4 {[%clk 0:01:20.4]} 20... cxd4 {[%clk 0:01:43.1]} 21.
Bxd4 {[%clk 0:01:16.1]} 21... Rxe5 {[%clk 0:01:40.8]} 22. Bxe5 {[%clk 0:01:14]}
22... Qxe5 {[%clk 0:01:41.7]} 23. exd5 {[%clk 0:01:10.4]} 23... Bg4 {[%clk
0:01:26.6]} 24. Nc4 {[%clk 0:01:07.9]} 24... Qc7 {[%clk 0:01:10.8]} 25. Rd2
{[%clk 0:00:58.1]} 25... Qc5+ {[%clk 0:01:03.3]} 26. Kh1 {[%clk 0:00:57]} 26...
b5 {[%clk 0:00:27.6]} 27. Ne5 {[%clk 0:00:45.7]} 27... Qe3 {[%clk 0:00:18.2]}
28. Nxg4 {[%clk 0:00:39.3]} 28... Nxg4 {[%clk 0:00:18.3]} 29. Rdd1 {[%clk
0:00:33.6]} 29... Nf6 {[%clk 0:00:13.2]} 30. Rf3 {[%clk 0:00:30.5]} 30... Qe2
{[%clk 0:00:12]} 31. Rdf1 {[%clk 0:00:23.4]} 31... Qxc2 {[%clk 0:00:11.6]} 32.
Qg3 {[%clk 0:00:19.9]} 32... Qg6 {[%clk 0:00:10.5]} 33. Qe5 {[%clk 0:00:18.4]}
33... Re7 {[%clk 0:00:07.7]} 34. Qd4 {[%clk 0:00:18.1]} 34... Qe4 {[%clk
0:00:06.1]} 35. Qd2 {[%clk 0:00:17.4]} 35... Qxd5 {[%clk 0:00:05.6]} 36. Qf2
{[%clk 0:00:14.7]} 36... Ne4 {[%clk 0:00:06]} 37. Qh4 {[%clk 0:00:14.7]} 37...
Qg5 {[%clk 0:00:05.5]} 38. Qxg5 {[%clk 0:00:13.6]} 38... hxg5 {[%clk 0:00:06.4]}
39. h3 {[%clk 0:00:11.3]} 39... g6 {[%clk 0:00:06.5]} 40. Kh2 {[%clk 0:00:08.7]}
40... f5 {[%clk 0:00:06.7]} 41. Rd1 {[%clk 0:00:07.6]} 41... Bg7 {[%clk
0:00:06.2]} 42. Rd8+ {[%clk 0:00:07.5]} 42... Kf7 {[%clk 0:00:06]} 43. Rfd3
{[%clk 0:00:06.1]} 43... Be5+ {[%clk 0:00:06.2]} 44. Kg1 {[%clk 0:00:06.2]}
44... Bg3 {[%clk 0:00:06.2]} 45. R3d7 {[%clk 0:00:04.9]} 45... f4 {[%clk
0:00:04.6]} 46. Rxe7+ {[%clk 0:00:04.9]} 46... Kxe7 {[%clk 0:00:05.5]} 47. Ra8
{[%clk 0:00:05.2]} 47... Nc5 {[%clk 0:00:05.6]} 48. Ra7+ {[%clk 0:00:05.2]}
48... Kd6 {[%clk 0:00:05.6]} 49. Rg7 {[%clk 0:00:05.2]} 49... Nxb3 {[%clk
0:00:05]} 50. Rxg6+ {[%clk 0:00:05.3]} 50... Kc5 {[%clk 0:00:05.9]} 51. Rxa6
{[%clk 0:00:05.3]} 51... Nd2 {[%clk 0:00:05]} 52. Rg6 {[%clk 0:00:05.1]} 52...
Nc4 {[%clk 0:00:04.4]} 53. Rxg5+ {[%clk 0:00:05.2]} 53... Kb6 {[%clk 0:00:05]}
54. Rf5 {[%clk 0:00:04.4]} 54... Nxa3 {[%clk 0:00:05.3]} 55. h4 {[%clk
0:00:03.9]} 55... b4 {[%clk 0:00:05.8]} 56. h5 {[%clk 0:00:03.6]} 56... b3
{[%clk 0:00:06.3]} 57. Rf8 {[%clk 0:00:02.4]} 57... Kb7 {[%clk 0:00:06.3]} 58.
Rf5 {[%clk 0:00:01.8]} 58... b2 {[%clk 0:00:06.1]} 0-1

[Event "*** Titled Tuesday Blitz"]
[Site "Chess.com"]
[Date "2020.05.12"]
[Round "1"]
[White "Robert_Chessmood"]
[Black "Majesth"]
[Result "1-0"]
[WhiteElo "2960"]
[BlackElo "2459"]
[TimeControl "180+1"]
[EndTime "10:08:26 PDT"]
[Termination "Robert_Chessmood won by resignation"]

1. e4 {[%clk 0:03:00.9]} 1... e6 {[%clk 0:02:59.5]} 2. d4 {[%clk 0:03:00.5]}
2... d5 {[%clk 0:02:59.9]} 3. Nc3 {[%clk 0:03:01.1]} 3... dxe4 {[%clk
0:02:59.6]} 4. Nxe4 {[%clk 0:03:01]} 4... Nd7 {[%clk 0:03:00.2]} 5. Nf3 {[%clk
0:03:01.1]} 5... Ngf6 {[%clk 0:03:00.2]} 6. Bg5 {[%clk 0:03:01.4]} 6... Be7
{[%clk 0:02:58.1]} 7. Nxf6+ {[%clk 0:02:59.8]} 7... Bxf6 {[%clk 0:02:57.8]} 8.
h4 {[%clk 0:02:58.3]} 8... h6 {[%clk 0:02:57.1]} 9. Bxf6 {[%clk 0:02:55.4]} 9...
Qxf6 {[%clk 0:02:56.2]} 10. Qd2 {[%clk 0:02:54.4]} 10... c5 {[%clk 0:02:44.4]}
11. O-O-O {[%clk 0:02:51.4]} 11... cxd4 {[%clk 0:02:42.5]} 12. Qxd4 {[%clk
0:02:42.7]} 12... Qxd4 {[%clk 0:02:39.7]} 13. Nxd4 {[%clk 0:02:43.6]} 13... a6
{[%clk 0:02:33.9]} 14. Rh3 {[%clk 0:02:41.1]} 14... O-O {[%clk 0:02:27.6]} 15.
Rc3 {[%clk 0:02:38.6]} 15... Nf6 {[%clk 0:02:20.6]} 16. g3 {[%clk 0:02:05.1]}
16... Ne4 {[%clk 0:02:03.9]} 17. Rf3 {[%clk 0:02:05.1]} 17... b5 {[%clk
0:01:43.5]} 18. Bd3 {[%clk 0:02:00.9]} 18... Bb7 {[%clk 0:01:42.1]} 19. Bxe4
{[%clk 0:01:47.8]} 19... Bxe4 {[%clk 0:01:43]} 20. Re3 {[%clk 0:01:48.4]} 20...
Bd5 {[%clk 0:01:42.4]} 21. b3 {[%clk 0:01:47.6]} 21... Rfd8 {[%clk 0:01:39.8]}
22. Red3 {[%clk 0:01:36.5]} 22... Be4 {[%clk 0:01:29.7]} 23. R3d2 {[%clk
0:01:24]} 23... Rd5 {[%clk 0:01:28.9]} 24. f3 {[%clk 0:01:12.5]} 24... Bg6
{[%clk 0:01:27.9]} 25. Ne2 {[%clk 0:01:07.6]} 25... Rxd2 {[%clk 0:01:11.1]} 26.
Rxd2 {[%clk 0:01:08.5]} 26... Rc8 {[%clk 0:01:11.4]} 27. Kb2 {[%clk 0:01:04.3]}
27... e5 {[%clk 0:01:07]} 28. f4 {[%clk 0:01:01.2]} 28... exf4 {[%clk
0:01:02.9]} 29. Nxf4 {[%clk 0:01:02.1]} 29... Be4 {[%clk 0:01:03.3]} 30. Nd5
{[%clk 0:00:51.2]} 30... Kf8 {[%clk 0:00:56.1]} 31. Ne3 {[%clk 0:00:36.3]} 31...
Rc6 {[%clk 0:00:51.3]} 32. c4 {[%clk 0:00:35.9]} 32... bxc4 {[%clk 0:00:49.6]}
33. Nxc4 {[%clk 0:00:36.8]} 33... g5 {[%clk 0:00:44]} 34. hxg5 {[%clk
0:00:36.3]} 34... hxg5 {[%clk 0:00:44]} 35. Kc3 {[%clk 0:00:29.9]} 35... Kg7
{[%clk 0:00:42.1]} 36. a4 {[%clk 0:00:28.5]} 36... f5 {[%clk 0:00:38.2]} 37.
Rd7+ {[%clk 0:00:14.3]} 37... Kf6 {[%clk 0:00:37.1]} 38. Kd4 {[%clk 0:00:14.8]}
38... Re6 {[%clk 0:00:29.1]} 39. Rd8 {[%clk 0:00:07.7]} 39... Bc2 {[%clk
0:00:26.1]} 40. b4 {[%clk 0:00:06.9]} 40... Bxa4 {[%clk 0:00:22.3]} 41. Rf8+
{[%clk 0:00:06.9]} 41... Kg6 {[%clk 0:00:14.9]} 42. Ne5+ {[%clk 0:00:06.6]}
42... Kh5 {[%clk 0:00:11.9]} 43. Rxf5 {[%clk 0:00:05.5]} 43... Bc2 {[%clk
0:00:07.9]} 44. Rf8 {[%clk 0:00:05.4]} 44... Rd6+ {[%clk 0:00:04.9]} 45. Kc5
{[%clk 0:00:04.7]} 45... Re6 {[%clk 0:00:05.3]} 46. Rh8+ {[%clk 0:00:04.5]}
46... Rh6 {[%clk 0:00:05.3]} 47. g4+ {[%clk 0:00:05]} 47... Kh4 {[%clk 0:00:03]}
48. Rxh6+ {[%clk 0:00:05.9]} 48... Kg3 {[%clk 0:00:03.9]} 49. Rxa6 {[%clk
0:00:06.3]} 49... Kf4 {[%clk 0:00:04.8]} 50. Nf7 {[%clk 0:00:05.4]} 50... Kxg4
{[%clk 0:00:04.9]} 51. Nxg5 {[%clk 0:00:05.5]} 51... Bd3 {[%clk 0:00:05.7]} 52.
b5 {[%clk 0:00:05]} 52... Kxg5 {[%clk 0:00:06.6]} 53. Ra5 {[%clk 0:00:05.2]}
53... Be4 {[%clk 0:00:06.3]} 54. b6 {[%clk 0:00:06.1]} 54... Kf4 {[%clk
0:00:06.7]} 55. Ra7 {[%clk 0:00:07]} 55... Bf3 {[%clk 0:00:05.2]} 56. Rc7 {[%clk
0:00:07.9]} 56... Ke5 {[%clk 0:00:04.9]} 57. Re7+ {[%clk 0:00:07.7]} 57... Kf6
{[%clk 0:00:04.5]} 58. Re3 {[%clk 0:00:07.7]} 58... Bb7 {[%clk 0:00:04.5]} 59.
Kd6 {[%clk 0:00:08.2]} 1-0

[Event "*** Titled Tuesday Blitz"]
[Site "Chess.com"]
[Date "2020.05.12"]
[Round "1"]
[White "SirMittensofMittensville"]
[Black "GiorgianBarbosa"]
[Result "0-1"]
[WhiteElo "2564"]
[BlackElo "2267"]
[TimeControl "180+1"]
[EndTime "10:08:26 PDT"]
[Termination "GiorgianBarbosa won by resignation"]

1. e4 {[%clk 0:03:00.9]} 1... c5 {[%clk 0:02:59.6]} 2. c3 {[%clk 0:03:01]} 2...
g6 {[%clk 0:03:00.3]} 3. d4 {[%clk 0:03:00.2]} 3... cxd4 {[%clk 0:03:01.2]} 4.
cxd4 {[%clk 0:03:01.1]} 4... d5 {[%clk 0:02:58]} 5. e5 {[%clk 0:03:00.8]} 5...
Bg7 {[%clk 0:02:57.8]} 6. Nc3 {[%clk 0:03:01]} 6... Nc6 {[%clk 0:02:57.2]} 7. h4
{[%clk 0:03:01.5]} 7... h5 {[%clk 0:02:54.6]} 8. Bb5 {[%clk 0:02:57.4]} 8... Nh6
{[%clk 0:02:50.2]} 9. Nf3 {[%clk 0:02:52]} 9... Bg4 {[%clk 0:02:49.2]} 10. Bxc6+
{[%clk 0:02:50]} 10... bxc6 {[%clk 0:02:48.5]} 11. Bxh6 {[%clk 0:02:50.9]} 11...
Bxh6 {[%clk 0:02:48]} 12. Rc1 {[%clk 0:02:51.6]} 12... Bxc1 {[%clk 0:02:45.9]}
13. Qxc1 {[%clk 0:02:52.5]} 13... e6 {[%clk 0:02:39.7]} 14. Ng5 {[%clk
0:02:48.4]} 14... O-O {[%clk 0:02:32.9]} 15. O-O {[%clk 0:02:44.4]} 15... f6
{[%clk 0:02:20.7]} 16. exf6 {[%clk 0:02:44.1]} 16... Qxf6 {[%clk 0:02:21.6]} 17.
Qe3 {[%clk 0:02:38.9]} 17... Qf4 {[%clk 0:02:16.6]} 18. Rc1 {[%clk 0:02:27.6]}
18... Qxe3 {[%clk 0:02:10.4]} 19. fxe3 {[%clk 0:02:27.6]} 19... Rac8 {[%clk
0:02:05.7]} 20. Na4 {[%clk 0:02:27.4]} 20... Rfe8 {[%clk 0:02:00.3]} 21. Nc5
{[%clk 0:02:22]} 21... e5 {[%clk 0:02:00]} 22. Rc3 {[%clk 0:02:10.6]} 22... exd4
{[%clk 0:01:57.5]} 23. exd4 {[%clk 0:02:11.5]} 23... Re1+ {[%clk 0:01:37.2]} 24.
Kh2 {[%clk 0:02:11.3]} 24... Re2 {[%clk 0:01:34.4]} 25. Nd3 {[%clk 0:02:04.2]}
25... Rf8 {[%clk 0:01:14]} 26. Rxc6 {[%clk 0:01:57.4]} 26... Bf5 {[%clk
0:01:03.9]} 27. Nf4 {[%clk 0:01:51.8]} 27... Rxb2 {[%clk 0:00:59.8]} 28. Nxg6
{[%clk 0:01:52.1]} 28... Bxg6 {[%clk 0:00:57.3]} 29. Rxg6+ {[%clk 0:01:53]}
29... Kh8 {[%clk 0:00:57.4]} 30. a3 {[%clk 0:01:34.7]} 30... Rf4 {[%clk
0:00:48]} 31. Kh3 {[%clk 0:01:23.2]} 31... Rb3+ {[%clk 0:00:46.7]} 32. g3 {[%clk
0:01:21.1]} 32... Rg4 {[%clk 0:00:44.4]} 33. Nf7+ {[%clk 0:01:18.1]} 33... Kh7
{[%clk 0:00:41.8]} 34. Rxg4 {[%clk 0:01:19]} 34... hxg4+ {[%clk 0:00:32.9]} 35.
Kxg4 {[%clk 0:01:19.9]} 35... Rxa3 {[%clk 0:00:28.3]} 36. Kf4 {[%clk 0:00:52.2]}
36... a5 {[%clk 0:00:28.4]} 37. g4 {[%clk 0:00:51.9]} 37... a4 {[%clk
0:00:28.6]} 38. h5 {[%clk 0:00:47.1]} 38... Rh3 {[%clk 0:00:26.6]} 39. Ng5+
{[%clk 0:00:46.5]} 39... Kh8 {[%clk 0:00:24.4]} 40. Nxh3 {[%clk 0:00:38.7]}
40... a3 {[%clk 0:00:24.7]} 41. Ng5 {[%clk 0:00:17.4]} 41... a2 {[%clk
0:00:25.6]} 42. Ne6 {[%clk 0:00:16.8]} 42... a1=Q {[%clk 0:00:25.2]} 43. Ke5
{[%clk 0:00:16.7]} 43... Qe1+ {[%clk 0:00:22.7]} 44. Kf6 {[%clk 0:00:14.2]}
44... Qh4+ {[%clk 0:00:18.6]} 45. Kf5 {[%clk 0:00:14]} 45... Qf2+ {[%clk
0:00:17.5]} 46. Kg6 {[%clk 0:00:12.7]} 46... Qc2+ {[%clk 0:00:16.8]} 47. Kf6
{[%clk 0:00:12.8]} 47... Qf2+ {[%clk 0:00:15.3]} 48. Ke5 {[%clk 0:00:12.8]}
48... Qg3+ {[%clk 0:00:12.8]} 49. Kf5 {[%clk 0:00:13.2]} 49... Qf3+ {[%clk
0:00:13.1]} 50. Kg5 {[%clk 0:00:12.7]} 50... Qe4 {[%clk 0:00:11.8]} 51. Kf6
{[%clk 0:00:10.7]} 51... Qxg4 {[%clk 0:00:11]} 52. h6 {[%clk 0:00:10.6]} 52...
Kh7 {[%clk 0:00:08.8]} 53. Ke5 {[%clk 0:00:09.2]} 53... Qe4+ {[%clk 0:00:08]}
54. Kd6 {[%clk 0:00:09.1]} 54... Kxh6 {[%clk 0:00:06.6]} 55. Kd7 {[%clk
0:00:08.8]} 55... Kg6 {[%clk 0:00:05.6]} 56. Kd6 {[%clk 0:00:09.7]} 56... Kf5
{[%clk 0:00:05.7]} 57. Ng7+ {[%clk 0:00:08.9]} 57... Kf4 {[%clk 0:00:05.9]} 58.
Ne6+ {[%clk 0:00:08.3]} 58... Ke3 {[%clk 0:00:06]} 59. Kd7 {[%clk 0:00:07.9]}
59... Qxd4 {[%clk 0:00:06.4]} 0-1

[Event "*** Titled Tuesday Blitz"]
[Site "Chess.com"]
[Date "2020.05.12"]
[Round "1"]
[White "EddieMarsalla"]
[Black "nonsopolo1"]
[Result "1-0"]
[WhiteElo "2527"]
[BlackElo "2176"]
[TimeControl "180+1"]
[EndTime "10:08:26 PDT"]
[Termination "EddieMarsalla won by resignation"]

1. d4 {[%clk 0:03:00.9]} 1... Nf6 {[%clk 0:02:58.9]} 2. Bg5 {[%clk 0:03:00.7]}
2... g6 {[%clk 0:02:58.5]} 3. Nd2 {[%clk 0:02:57.5]} 3... Bg7 {[%clk 0:02:55.7]}
4. c3 {[%clk 0:02:57.2]} 4... O-O {[%clk 0:02:55.4]} 5. e4 {[%clk 0:02:56.9]}
5... d6 {[%clk 0:02:54.2]} 6. Ngf3 {[%clk 0:02:56]} 6... Nbd7 {[%clk 0:02:53.5]}
7. Bd3 {[%clk 0:02:55.7]} 7... h6 {[%clk 0:02:52.5]} 8. Bh4 {[%clk 0:02:52.5]}
8... e5 {[%clk 0:02:51.9]} 9. dxe5 {[%clk 0:02:51.9]} 9... Nxe5 {[%clk
0:02:50.6]} 10. Nxe5 {[%clk 0:02:51.5]} 10... dxe5 {[%clk 0:02:50.6]} 11. Qe2
{[%clk 0:02:52.4]} 11... Qe8 {[%clk 0:02:47.3]} 12. O-O {[%clk 0:02:50]} 12...
Nh5 {[%clk 0:02:47]} 13. Bg3 {[%clk 0:02:50.3]} 13... Bd7 {[%clk 0:02:44.1]} 14.
Rfd1 {[%clk 0:02:47.9]} 14... Bc6 {[%clk 0:02:43.3]} 15. Nc4 {[%clk 0:02:36.1]}
15... Rd8 {[%clk 0:02:41.3]} 16. Ne3 {[%clk 0:02:35.4]} 16... Kh8 {[%clk
0:02:36.1]} 17. Bc2 {[%clk 0:02:28.2]} 17... Qe7 {[%clk 0:02:35.5]} 18. Qg4
{[%clk 0:01:57.3]} 18... Nxg3 {[%clk 0:02:25.2]} 19. hxg3 {[%clk 0:01:56.4]}
19... Rxd1+ {[%clk 0:02:21.8]} 20. Rxd1 {[%clk 0:01:54.5]} 20... Rd8 {[%clk
0:02:22]} 21. Qe2 {[%clk 0:01:38.2]} 21... Bf8 {[%clk 0:02:18]} 22. Nd5 {[%clk
0:01:28.2]} 22... Bxd5 {[%clk 0:02:10]} 23. exd5 {[%clk 0:01:29.1]} 23... f5
{[%clk 0:02:08.7]} 24. g4 {[%clk 0:01:29.5]} 24... e4 {[%clk 0:02:06.3]} 25.
gxf5 {[%clk 0:01:29.3]} 25... gxf5 {[%clk 0:02:06.3]} 26. Qh5 {[%clk 0:01:29.8]}
26... Qf6 {[%clk 0:02:04.5]} 27. g3 {[%clk 0:00:48.7]} 27... Bc5 {[%clk
0:02:03.9]} 28. Kg2 {[%clk 0:00:48.6]} 28... Rg8 {[%clk 0:01:59.2]} 29. Rh1
{[%clk 0:00:45.6]} 29... Rg6 {[%clk 0:01:59.1]} 30. b4 {[%clk 0:00:41.5]} 30...
Bb6 {[%clk 0:01:58.6]} 31. c4 {[%clk 0:00:39.5]} 31... Bd4 {[%clk 0:01:57.5]}
32. Qe2 {[%clk 0:00:31.1]} 32... Kg7 {[%clk 0:01:57.2]} 33. c5 {[%clk 0:00:28]}
33... Qe5 {[%clk 0:01:56.3]} 34. Rh5 {[%clk 0:00:15.6]} 34... Qxd5 {[%clk
0:01:51.7]} 35. Bb3 {[%clk 0:00:15.9]} 35... Qe5 {[%clk 0:01:51.5]} 36. Qc4
{[%clk 0:00:15.8]} 36... Kh7 {[%clk 0:01:30.1]} 37. Qf7+ {[%clk 0:00:13]} 37...
Rg7 {[%clk 0:01:30]} 38. Qxf5+ {[%clk 0:00:13.2]} 38... Qxf5 {[%clk 0:01:30.2]}
39. Rxf5 {[%clk 0:00:14.1]} 39... e3 {[%clk 0:01:29.3]} 40. Bc2 {[%clk
0:00:10.7]} 40... Kg8 {[%clk 0:01:27.3]} 41. fxe3 {[%clk 0:00:10]} 41... Bxe3
{[%clk 0:01:27.4]} 42. Re5 {[%clk 0:00:09.6]} 42... Bf4 {[%clk 0:01:25.4]} 43.
Bb3+ {[%clk 0:00:09.3]} 43... Kf8 {[%clk 0:01:25.7]} 44. Rf5+ {[%clk 0:00:09.3]}
44... Ke7 {[%clk 0:01:26]} 45. Rxf4 {[%clk 0:00:09.4]} 45... Rg5 {[%clk
0:01:23]} 46. Rf7+ {[%clk 0:00:08.5]} 46... Kd8 {[%clk 0:01:22.8]} 47. Rh7
{[%clk 0:00:08.9]} 47... h5 {[%clk 0:01:22.7]} 48. Kh3 {[%clk 0:00:09.3]} 48...
a5 {[%clk 0:01:22.8]} 49. a3 {[%clk 0:00:07.9]} 49... axb4 {[%clk 0:01:20.4]}
50. axb4 {[%clk 0:00:08.8]} 50... Rg4 {[%clk 0:01:20.8]} 51. Rxh5 {[%clk
0:00:08.3]} 51... Rxb4 {[%clk 0:01:20.4]} 52. Rh8+ {[%clk 0:00:08.8]} 52... Kd7
{[%clk 0:01:20.2]} 53. Rh7+ {[%clk 0:00:09.3]} 53... Kd8 {[%clk 0:01:20.2]} 54.
Be6 {[%clk 0:00:09.8]} 54... Rb5 {[%clk 0:01:16.4]} 55. Rd7+ {[%clk 0:00:09.5]}
55... Ke8 {[%clk 0:01:15.6]} 56. Rxc7 {[%clk 0:00:09.5]} 56... Kd8 {[%clk
0:01:13.5]} 57. Rd7+ {[%clk 0:00:09.8]} 57... Ke8 {[%clk 0:01:13.5]} 58. Rd5
{[%clk 0:00:10.3]} 58... Ke7 {[%clk 0:01:13.4]} 59. Bg4 {[%clk 0:00:10.1]} 59...
Ra5 {[%clk 0:01:10.5]} 60. Rd7+ {[%clk 0:00:09.7]} 60... Kf6 {[%clk 0:01:10.7]}
61. Rxb7 {[%clk 0:00:10.1]} 61... Rxc5 {[%clk 0:01:10.9]} 62. Kh4 {[%clk
0:00:09.5]} 62... Rc4 {[%clk 0:01:09.6]} 63. Rb6+ {[%clk 0:00:09.5]} 63... Kg7
{[%clk 0:01:09.6]} 64. Re6 {[%clk 0:00:07.6]} 64... Ra4 {[%clk 0:01:09.8]} 65.
Kg5 {[%clk 0:00:06.6]} 65... Ra5+ {[%clk 0:01:10.1]} 66. Bf5 {[%clk 0:00:07]}
66... Rb5 {[%clk 0:01:10.1]} 67. Re7+ {[%clk 0:00:05.8]} 67... Kf8 {[%clk
0:01:10.2]} 68. Ra7 {[%clk 0:00:06.7]} 68... Rc5 {[%clk 0:01:10.3]} 69. g4
{[%clk 0:00:06.1]} 69... Rb5 {[%clk 0:01:09.7]} 70. Kf6 {[%clk 0:00:05.6]} 70...
Rb6+ {[%clk 0:01:09.8]} 71. Be6 {[%clk 0:00:05.7]} 71... Rc6 {[%clk 0:01:10]}
72. Ra8+ {[%clk 0:00:05]} 1-0

[Event "*** Titled Tuesday Blitz"]
[Site "Chess.com"]
[Date "2020.05.12"]
[Round "1"]
[White "DanilNajdin"]
[Black "Abund"]
[Result "0-1"]
[WhiteElo "2298"]
[BlackElo "2619"]
[TimeControl "180+1"]
[EndTime "10:08:29 PDT"]
[Termination "Abund won by resignation"]

1. d4 {[%clk 0:02:58.6]} 1... Nf6 {[%clk 0:02:23.1]} 2. c4 {[%clk 0:02:56.5]}
2... g6 {[%clk 0:02:23.1]} 3. g3 {[%clk 0:02:55.5]} 3... Bg7 {[%clk 0:02:19.8]}
4. Bg2 {[%clk 0:02:56]} 4... d5 {[%clk 0:02:20]} 5. Nf3 {[%clk 0:02:53.8]} 5...
O-O {[%clk 0:02:19.4]} 6. O-O {[%clk 0:02:51.3]} 6... dxc4 {[%clk 0:02:19.8]} 7.
Nbd2 {[%clk 0:02:31.9]} 7... c3 {[%clk 0:02:04]} 8. bxc3 {[%clk 0:02:31.2]} 8...
c5 {[%clk 0:02:04.2]} 9. e3 {[%clk 0:02:23.8]} 9... Nc6 {[%clk 0:01:59.2]} 10.
Ba3 {[%clk 0:02:14.5]} 10... Nd5 {[%clk 0:01:15.3]} 11. Bxc5 {[%clk 0:02:00.7]}
11... Nxc3 {[%clk 0:01:13.4]} 12. Qb3 {[%clk 0:02:00]} 12... Nd5 {[%clk
0:01:11.6]} 13. Rfc1 {[%clk 0:01:51.2]} 13... b6 {[%clk 0:01:05]} 14. Bxb6
{[%clk 0:01:38.3]} 14... Nxb6 {[%clk 0:00:32.6]} 15. Rxc6 {[%clk 0:01:37.1]}
15... Bb7 {[%clk 0:00:31.6]} 16. Rcc1 {[%clk 0:01:31.1]} 16... Bd5 {[%clk
0:00:31.5]} 17. Qd3 {[%clk 0:01:26.5]} 17... Qd6 {[%clk 0:00:23.2]} 18. Ne4
{[%clk 0:01:21.3]} 18... Bxe4 {[%clk 0:00:20.6]} 19. Qxe4 {[%clk 0:01:22.2]}
19... Rac8 {[%clk 0:00:20.1]} 20. Nd2 {[%clk 0:01:13.7]} 20... Qa3 {[%clk
0:00:19.6]} 21. Rxc8 {[%clk 0:00:51.9]} 21... Rxc8 {[%clk 0:00:20.1]} 22. Nb3
{[%clk 0:00:38.8]} 22... e6 {[%clk 0:00:16.9]} 23. Bf1 {[%clk 0:00:35.6]} 23...
Nd5 {[%clk 0:00:16.3]} 24. Nc5 {[%clk 0:00:31.4]} 24... Bf8 {[%clk 0:00:01.5]}
25. Nxe6 {[%clk 0:00:27.9]} 25... Re8 {[%clk 0:00:01.9]} 26. Qxd5 {[%clk
0:00:27]} 26... Rxe6 {[%clk 0:00:02.3]} 27. Bc4 {[%clk 0:00:20.6]} 27... Qb2
{[%clk 0:00:02.6]} 28. Rf1 {[%clk 0:00:19.1]} 28... Re7 {[%clk 0:00:03]} 29. a4
{[%clk 0:00:17]} 29... Qb4 {[%clk 0:00:03.1]} 30. a5 {[%clk 0:00:16.2]} 30...
Rc7 {[%clk 0:00:03.3]} 31. Ba2 {[%clk 0:00:13.1]} 31... Qa3 {[%clk 0:00:03.2]}
32. h4 {[%clk 0:00:11.6]} 32... Bb4 {[%clk 0:00:03.4]} 33. h5 {[%clk 0:00:11.2]}
33... Qxa5 {[%clk 0:00:03]} 34. Qd8+ {[%clk 0:00:09]} 34... Kg7 {[%clk
0:00:03.3]} 35. h6+ {[%clk 0:00:07.8]} 35... Kxh6 {[%clk 0:00:03]} 36. Qf8+
{[%clk 0:00:07.7]} 36... Bxf8 {[%clk 0:00:02.5]} 37. Kg2 {[%clk 0:00:06.6]}
37... Kg7 {[%clk 0:00:03.4]} 38. Rb1 {[%clk 0:00:05.9]} 38... Qb6 {[%clk
0:00:03.5]} 39. Rxb6 {[%clk 0:00:05.1]} 39... axb6 {[%clk 0:00:04.4]} 40. Bb3
{[%clk 0:00:04]} 40... Ra7 {[%clk 0:00:05.3]} 41. Kf3 {[%clk 0:00:03.5]} 41...
h6 {[%clk 0:00:06.2]} 42. Ke4 {[%clk 0:00:03.9]} 42... h5 {[%clk 0:00:07.1]} 43.
Kd5 {[%clk 0:00:04.3]} 43... Be7 {[%clk 0:00:08]} 44. Kc6 {[%clk 0:00:04.4]}
44... Ra3 {[%clk 0:00:07.9]} 45. Bd5 {[%clk 0:00:03.7]} 45... Rc3+ {[%clk
0:00:08.4]} 46. Kxb6 {[%clk 0:00:03.6]} 46... Rc2 {[%clk 0:00:09.3]} 47. f3
{[%clk 0:00:03.1]} 47... Rf2 {[%clk 0:00:10.2]} 48. Kc6 {[%clk 0:00:02.2]} 48...
h4 {[%clk 0:00:09.8]} 49. Kd7 {[%clk 0:00:02.6]} 49... hxg3 {[%clk 0:00:09.3]}
50. f4 {[%clk 0:00:02.8]} 50... g2 {[%clk 0:00:10.2]} 51. Bxg2 {[%clk
0:00:03.1]} 51... Rxg2 {[%clk 0:00:10.4]} 52. Kxe7 {[%clk 0:00:04]} 52... Re2
{[%clk 0:00:11.2]} 53. d5 {[%clk 0:00:04.1]} 53... Rxe3+ {[%clk 0:00:11.6]} 54.
Kd7 {[%clk 0:00:05]} 54... Kf6 {[%clk 0:00:10.5]} 55. d6 {[%clk 0:00:05.9]}
55... Rd3 {[%clk 0:00:11.1]} 56. Kc7 {[%clk 0:00:06.8]} 56... Ke6 {[%clk
0:00:11.7]} 57. d7 {[%clk 0:00:07.7]} 57... Rxd7+ {[%clk 0:00:12.1]} 58. Kc8
{[%clk 0:00:06.6]} 58... Rd4 {[%clk 0:00:13]} 59. f5+ {[%clk 0:00:06.4]} 59...
Kxf5 {[%clk 0:00:12.8]} 0-1